Cogmind - Beta 11.1 *** ADVENTURER MODE // 2022.06.06 @ 17:59:09 Player: Enceladus Result: Destroyed by Y-45 Defender with Heavy Assault Rifle Performance ------------- Evolutions (1) 500 Regions Visited (2) 400 Robots Destroyed (13) 65 Value Destroyed (275) 275 Prototype IDs (0) 0 Alien Tech Used (0) 0 Bonus (0) 0 TOTAL SCORE: 1240 Bonus ------- None Cogmind --------- Core Integrity 0/400 Matter 187/300 Energy 85/100 System Corruption 0% Temperature Cool (0) Movement Rolling (80) Location -9/Materials Parts ------- > --- POWER (2) -------- (None) > --- PROPULSION (2) --- Wheel > --- UTILITY (3) ------ (None) > --- WEAPON (2) ------- (None) > --- INVENTORY (5) ---- Light Ion Engine Aluminum Leg Flight Unit Light Assault Rifle Peak State ------------ > --- POWER ------------ Ion Engine Light Ion Engine > --- PROPULSION ------- Aluminum Leg Aluminum Leg > --- UTILITY ---------- Medium Storage Unit Structural Scanner > --- WEAPON ----------- EM Pulse Gun Light Assault Rifle > --- INVENTORY -------- Light Ion Engine Aluminum Leg Wheel Flight Unit Small Laser Light Assault Rifle Light Assault Rifle Grenade Launcher [Rating: 8] Favorites ----------- Power Ion Engine Engine Ion Engine Propulsion Aluminum Leg Leg Aluminum Leg Wheel Wheel Flight Unit Flight Unit Utility Medium Storage Unit Device Structural Scanner Storage Medium Storage Unit Weapon Light Assault Rifle Energy Gun EM Pulse Gun Ballistic Gun Light Assault Rifle Launcher Grenade Launcher Build | -11 -10 -9 ------- Run | Scr Mat Mat Slots Evolved 2 | . . 2 Power 1 | . . 1 Propulsion . | . . . Utility 1 | . . 1 Weapon . | . . . Parts Attached 17 | 2 8 7 Power 3 | . 1 2 Engine 3 | . 1 2 Core . | . . . Reactor . | . . . Propulsion 5 | 1 2 2 Treads . | . . . Leg 2 | . 2 . Wheel 2 | 1 . 1 Hover . | . . . Flight 1 | . . 1 Utility 3 | 1 2 . Device 1 | . 1 . Storage 2 | 1 1 . Processor . | . . . Hackware . | . . . Protection . | . . . Artifact . | . . . Weapon 6 | . 3 3 Energy Gun 3 | . 2 1 Energy Cannon . | . . . Ballistic Gun 2 | . 1 1 Ballistic Cannon . | . . . Launcher 1 | . . 1 Special Weapon . | . . . Impact Weapon . | . . . Slashing Weapon . | . . . Piercing Weapon . | . . . Special Melee Weapon . | . . . Unidentified Prototypes . | . . . Parts Lost 12 | . . 12 Power 3 | . . 3 Propulsion 3 | . . 3 Utility 1 | . . 1 Weapon 5 | . . 5 Highest Loss Streak 6 | . . 6 To Critical Strikes . | . . . Average Slot Usage (%) 81 | . 96 64 Engine 13 | . 14 13 Leg 20 | . 27 13 Device 10 | . 12 7 Storage 11 | . 13 8 Energy Gun 10 | . 13 7 Ballistic Gun 11 | . 13 9 Naked Turns 1 | . . 1 Heaviest Build 22 | 5 19 22 Greatest Support 20 | 10 20 20 Greatest Overweight (x) 6 | . . 6 Average Overweight (x) . | . . . Largest Inventory Capacity 10 | 8 10 10 Average Capacity 9 | 6 9 8 Most Carried 9 | 7 9 8 Average Carried 6 | 4 7 6 Final Capacity 10 | 8 10 5 Final Carried 9 | 7 9 4 Class Distribution -------------------- 100% | Mutant Dominant Class ---------------- Mutant | -10/Materials Mutant | -9/Materials Resources | -11 -10 -9 ----------- Run | Scr Mat Mat Matter Collected 284 | 210 56 18 Remotely . | . . . Salvage Created 303 | . 104 199 Parts 28 | . 11 17 Haulers Intercepted 1 | . . 1 Recyclers Shooed 2 | . . 2 Parts Field Recycled . | . . . Retrieved Matter . | . . . Parts Self-Destructed . | . . . Prevented . | . . . Kills | -11 -10 -9 ------- Run | Scr Mat Mat Combat Hostiles Destroyed 12 | . 4 8 Guns 4 | . 4 . AOE 8 | . . 8 Classes Destroyed 5 | . 2 3 Hauler 1 | . . 1 Swarmer 7 | . 3 4 Grunt 3 | . 1 2 Brawler 1 | . . 1 Sentry 1 | . . 1 Best Kill Streak 9 | . 3 9 Combat Bots Only 8 | . 3 8 Max Kills in Single Turn 3 | . 1 3 Gunslinging . | . . . Exploded 3 | . . 3 Melee . | . . . Uniques/NPCs Destroyed . | . . . Combat | -11 -10 -9 -------- Run | Scr Mat Mat Damage Taken 1287 | 4 95 1188 Core 444 | . 34 410 Absorbed by Shields . | . . . Core Remaining (%) 93 | 100 86 . Volleys Fired 37 | . 12 25 Largest 2 | . 2 2 Hottest 60 | . 60 60 Shots Fired 63 | . 24 39 Gun 57 | . 24 33 Cannon . | . . . Launcher 6 | . . 6 Special . | . . . Kinetic 37 | . 12 25 Thermal 6 | . . 6 Explosive 6 | . . 6 Electromagnetic 14 | . 12 2 Robot Hit Streak 21 | . 5 21 Robot Miss Streak 2 | . 2 2 Penetration Max . | . . . Secondary Targets . | . . . Shots Hit Robots 51 | . 16 35 Core Hits 25 | 1 5 19 Critical Kills . | . . . Critical Parts Destroyed . | . . . Critical Strikes 1 | . . 1 Corrupt 1 | . . 1 Melee Attacks . | . . . Impact . | . . . Slashing . | . . . Piercing . | . . . Sneak Attacks . | . . . Combat Hostiles . | . . . Follow-up Attacks . | . . . Damage Inflicted 965 | 10 195 760 Guns 454 | . 195 259 Cannons . | . . . Explosions 501 | . . 501 Melee . | . . . Ramming 10 | 10 . . Kinetic 259 | . 79 180 Thermal 56 | . . 56 Explosive 501 | . . 501 Electromagnetic 139 | . 116 23 Impact . | . . . Slashing . | . . . Piercing . | . . . Highest Corruption . | . . . Average Corruption . | . . . Corruption Purged . | . . . Corruption Blocked . | . . . Overload Shots . | . . . Overflow Damage 10 | . . 10 Projectiles . | . . . Explosions 10 | . . 10 Melee . | . . . Knockbacks . | . . . Impact . | . . . Kinetic . | . . . Secondary . | . . . Self-Inflicted Damage 43 | 4 . 39 Shots 3 | . . 3 Rammed 2 | 2 . . Targets Rammed 2 | 2 . . Kicked . | . . . Crushed . | . . . Highest Temperature 114 | . 38 114 Average Temperature 26 | . 15 33 Received Heat Transfer 561 | . 42 519 Siege Activations . | . . . Robots Corrupted . | . . . Combat Hostiles . | . . . Parts Fried . | . . . Impact Corruptions . | . . . Robots Melted . | . . . Combat Hostiles . | . . . Parts Melted . | . . . Heat Transferred 125 | . . 125 Parts Sabotaged . | . . . Parts Stolen . | . . . Parts Stripped . | . . . Power Chain Reactions . | . . . Missiles Intercepted . | . . . Alert | -11 -10 -9 ------- Run | Scr Mat Mat Peak Influence 268 | . 116 268 Initial 41 | . . 41 Average 57 | . 66 56 Maximum Alert Level 1 | . . 1 Low Security (%) 98 | 100 100 95 Level 1 1 | . . 4 Level 2 . | . . . Level 3 . | . . . Level 4 . | . . . Level 5 . | . . . High Security . | . . . Max Security . | . . . Squads Dispatched 4 | . 1 3 Investigation 1 | . 1 . Extermination . | . . . Reinforcement 3 | . . 3 Assault . | . . . Garrison . | . . . Intercept . | . . . Searches Triggered . | . . . Construction Impeded 1 | . . 1 Haulers Reinforced . | . . . Active Scanning Responses . | . . . Cargo Convoy Interrupts . | . . . Stealth | -11 -10 -9 --------- Run | Scr Mat Mat Distress Signals . | . . . Communications Jammed . | . . . Distress Signals . | . . . Times Spotted 25 | . 10 15 Peak Tracking Total 12 | . 5 12 Tactical Retreats 3 | . 1 2 Traps | -11 -10 -9 ------- Run | Scr Mat Mat Traps Triggered . | . . . Indirectly . | . . . Trap Hack Attempts . | . . . Triggered . | . . . Disarmed . | . . . Reprogrammed . | . . . Reused . | . . . Traps Extracted . | . . . Installed . | . . . Triggered . | . . . Machines | -11 -10 -9 ---------- Run | Scr Mat Mat Machines Disabled 2 | . . 2 Max in Single Turn 1 | . . 1 Machines Sabotaged . | . . . Garrisons Compromised . | . . . Overloaded Fab Kills . | . . . Hacking | -11 -10 -9 --------- Run | Scr Mat Mat Machines Accessed 4 | . 2 2 Terminals 4 | . 2 2 Fabricators . | . . . Repair Stations . | . . . Recycling Units . | . . . Scanalyzers . | . . . Garrison Access . | . . . Total Hacks 12 | . 9 3 Successful 11 | . 8 3 Failed 1 | . 1 . Catastrophic . | . . . Database Lockouts . | . . . Manual . | . . . Terminals 12 | . 9 3 Fabricators . | . . . Repair Stations . | . . . Recycling Units . | . . . Scanalyzers . | . . . Garrison Access . | . . . Terminal Hacks 11 | . 8 3 Record 6 | . 6 . Alert Level 1 | . . 1 Locate Traps 1 | . 1 . Recall Reinforcements 1 | . . 1 Registered Components 1 | . 1 . Zone Layout 1 | . . 1 Fabricator Hacks . | . . . Repair Station Hacks . | . . . Recycling Unit Hacks . | . . . Scanalyzer . | . . . Garrison Access Hacks . | . . . Unauthorized Hacks . | . . . Terminals . | . . . Fabricators . | . . . Repair Stations . | . . . Recycling Units . | . . . Scanalyzers . | . . . Garrison Access . | . . . Data Cores Recovered . | . . . Used . | . . . Hacking Detections 1 | . 1 . Full Trace Events 1 | . 1 . Feedback Events . | . . . Feedback Blocked . | . . . Robot Schematics Acquired . | . . . Robots Built . | . . . Authchips . | . . . Time . | . . . Total Robot Build Rating . | . . . Part Schematics Acquired . | . . . Parts Built . | . . . Authchips . | . . . Time . | . . . Total Part Build Rating . | . . . Parts Repaired . | . . . Time . | . . . Parts Recycled . | . . . Recycled Matter . | . . . Retrieved Matter . | . . . Retrieved Components . | . . . Parts Scanalyzed . | . . . Part Schematics Acquired . | . . . Parts Damaged . | . . . Bothacking | -11 -10 -9 ------------ Run | Scr Mat Mat Used RIF Installer . | . . . Robots Hacked . | . . . Non-combat . | . . . Combat . | . . . Robot Hacks Applied . | . . . Relay Couplers Released . | . . . Fabnet Peak Effective % . | . . . Robots Rewired . | . . . Allies Hacked . | . . . Hacks Repelled . | . . . Allies | -11 -10 -9 -------- Run | Scr Mat Mat Total Allies . | . . . Largest Group . | . . . Highest-Rated Group . | . . . Highest-Rated Ally . | . . . Total Orders . | . . . Ally Attacks . | . . . Total Damage . | . . . Kills . | . . . Allies Corrupted . | . . . Allies Melted . | . . . Intel | -11 -10 -9 ------- Run | Scr Mat Mat Robot Analysis Total . | . . . Derelict Logs Recovered . | . . . Drone Launches . | . . . Drone Recoveries . | . . . Exploration | -11 -10 -9 ------------- Run | Scr Mat Mat Turns Passed 643 | 46 316 281 Spaces Moved 390 | 49 175 166 Core 25 | 16 . 9 Treads . | . . . Legs 267 | . 175 92 Wheels 33 | 33 . . Hover . | . . . Flight 65 | . . 65 Fastest Speed 40 | 50 120 40 Average Speed 113 | 70 120 119 Slowest Speed 350 | 80 120 350 Overloaded Moves . | . . . Propulsion Burnouts . | . . . Robots Hopped . | . . . Cave-ins Triggered . | . . . Exploration Rate (%) 18 | 5 32 17 Regions Visited 2 Branch Regions . Pre-discovered Areas . | . . . Known Exits Taken . | . . . Unknown Exits Taken 2 | 1 1 . Scrap Searched . | . . . Spaces Dug . | . . . Terrain Destroyed 15 | . . 15 Melee . | . . . Projectile . | . . . AOE 15 | . . 15 Terrain Rammed . | . . . Walls Destroyed . | . . . Machines Disabled . | . . . Actions | -11 -10 -9 --------- Run | Scr Mat Mat Total 533 | 59 260 214 Wait 68 | . 56 12 Move 388 | 48 174 166 Hop . | . . . Pick Up 17 | 7 7 3 Fast Attach 4 | 2 1 1 Attach 13 | . 7 6 Detach 2 | . 2 . Swap . | . . . Drop 2 | . 1 1 Fire 37 | . 12 25 Melee . | . . . Ram 2 | 2 . . Kick . | . . . Crush . | . . . Escape Stasis . | . . . Rewire . | . . . Trap . | . . . Miscellaneous . | . . . Route ------- -11/Scrapyard -10/Materials -9/Materials History --------- Turn | Location | Event 23 | -11/Scrapyard | Discovered new exit (range 16) 47 | -11/Scrapyard | Entered Materials 305 | -10/Materials | Discovered new exit (range 16) 316 | -10/Materials | Build established: Mutant 363 | -10/Materials | Entered another Materials area 363 | -9/Materials | Evolved 2 slots: Power x1, Utility x1 584 | -9/Materials | Core integrity fell below 50% 611 | -9/Materials | Lost 6 parts (2p1n1u2w) 627 | -9/Materials | Core integrity fell below 20% 644 | -9/Materials | Destroyed by Y-45 Defender with Heavy Assault Rifle Last Messages --------------- 00621_ G-34 Mercenary destroyed. 00625_ ALERT: Hostiles spotted, dispatching reinforcements to Terminal M002. 00627_ A-02 Transporter destroyed. 00630_ Y-45 Defender destroyed. 00630_ Atomic Centrifuge disabled. 00630_ ALERT: Construction progress impeded, dispatching reinforcements to local area. 00630_ Flight Unit destroyed. 00632_ G-34 Mercenary destroyed. 00632_ B-36 Bruiser destroyed. 00634_ R-06 Scavenger collects Lgt. Armor Plating. 00635_ Destroyed Com. Wheel. 00635_ Terminal disabled. 00636_ Grenade Launcher destroyed. 00638_ U-05 Engineer lays Concrete. 00640_ Critical hit (Burn: +37). 00640_ U-05 Engineer lays Concrete. 00643_ Lgt. Assault Rifle destroyed. 00643_ U-05 Engineer lays Concrete. Map ----- +----------------------------------------------------+ | ??????????????????????????????????????????? ## # | | ?????????????????????????????????????????#######/# | | ????????????????????????????????????????? # [%= | | ????????????????????????????????????????? # * | | ????????????????????????????????????????? # | | ????????????????????????????????????????? # | | ????????????????????????????????????????? # | | ????????????????????????????????????????? # | | ?????????????????????????????????????######## | | ?????????????????????????????????????######## | | ?????????????????????????????????????## ###/## | | ?????????????????????????????????????## | | ?????????????????????????????????????## | | ?????????????????????????????????????## | | ?????????????????????????????????????## ###### | | ?????????????????????????????????????### ####### | | ????????????????????????????????????? # ###???? | | ?????????????????????????????????????? # ##????? | | ?????????????????????????????????????? + ##????? | | ????????????????????????????????????? # ##????? | | ??????????????????????????????????? # ####### | | ???????????????????????####????????##### ####### | | ??????????????????###### ##???????##### # | | ??????????????????# ##????####### # """ | | ??????????????????# ############ # """ | | ??????????????????# @ + """ | | ??????????????????# [ # | | ??????????????????# """ """ # | | ??????????????????# ! r """ """ ####### | | ??????????????????# **] """ """ ######## | | ??????????????????# %** ###????? | | ??????????????????# **! #??????? | | ??????????????????######## !%[Y "" """ #??????? | | ?????????????????????????# Y %* "" """ #??????? | | ?????????????????????????# [Y "" """ #??????? | | ?????????????????????????#" #??????? | | ?????????????????????????#""u #??????? | | ?????????????????????????### """ """ #??????? | | ???????????????????????????# """ """ #####??# | | ????????????????############ """ """ ## T # | | ???????????# [ ## # | | ???????????# ########### ##! # | | ???????????????????????????############# ## ""?# | | ???????????????????????????????????????# ## ""?# | | ???????????????????????????????????????# #? "??# | | ??????????????????????????????????????## ## # | | ??????????????????????????????????????# ##+#### | | ??????????????????????????????????????# [! | | ??????????????????????????????????????# | | ??????????????????????????????????????# ##+#### | +----------------------------------------------------+ Best States ------------- Heat Dissipation 28 Energy Generation 15 Energy Capacity 275 Matter Stores 280 Matter Capacity 300 Sight Range 16 Terrain Scan Density 10 Resistance: KI 20 Resistance: TH 20 Resistance: EX 20 Resistance: EM 20 Resistance: I 20 Resistance: S 20 Resistance: P 20 Evasion (%) 62 Offensive Hacking 10 Item Schematics ----------------- None Robot Schematics ------------------ None Fabricated ------------ Nothing Alien Tech Used ----------------- None Achievements -------------- None Challenges ------------ None Game ------ Seed WaveEtherialBroadsword Manual? 0 Play Time 00:12:26 Cumulative 9.8 hours Start 2022.06.05 @ 17:51:54 End 2022.06.06 @ 17:59:09 Sessions 2 Manual Loads 0 Difficulty Adventurer Special Mode None Game No. 17 Rogue 16 Adventurer 1 Explorer 0 Win Type - Total 0 Types 0/0/0/0/0/0/0/0/0 Lore% 15 Gallery% 17 Achievement% 12 Wizard Run 0 Options --------- ASCII 0 Keyboard 0 Movement Mouse Keybinds 0 Fullscreen 2 Font 24/Terminus Map View 76x50 Tactical HUD 1 Map Filters NONE Filters NONE Steam 1 RUN: 9006230f-c4e2-4c07-abbc-d766f854e1c2